Body Name,Service Division Label,Service Division Code,Organisational Unit,Expenditure Category,Expenditure Code,CIPFA detailed expediture type,CIPFA detailed expediture code,Narrative,Date,Transaction number,Net Amount,Capital and Revenue,Supplier Name,
South Ribble Borough Council,http://statistics.data.gov.uk/id/local-authority/30UE,Capital,,Housing,Capital Grant,C570,Deferrd Chgs-Improvemnt Grants,DFG grant to supply planning drawings for an adaptation to be completed at ADDRESS REDACTED as per quote supplied of 1000,02/12/2020,0000460656,"1,000.00",Revenue,3DG DESIGN LTD,0
South Ribble Borough Council,http://statistics.data.gov.uk/id/local-authority/30UE,Capital,,Area 3 - Parks/Leyland East West,Cap Contract Payment,C230,Capital Other Land & Bldgs,"Improvement works to the overflow car park at Worden Park, Leyland",18/12/2020,0000460952,"20,323.12",Revenue,A & G Landscapes & Groundworks LTD,0
South Ribble Borough Council,http://statistics.data.gov.uk/id/local-authority/30UE,Capital,,Area 3 - Parks/Leyland East West,Cap Contract Payment,C230,Capital Other Land & Bldgs,LABOUR,18/12/2020,0000460952,"2,000.00",Revenue,A & G Landscapes & Groundworks LTD,0
South Ribble Borough Council,http://statistics.data.gov.uk/id/local-authority/30UE,Capital,,Area 3 - Parks/Leyland East West,Cap Contract Payment,C230,Capital Other Land & Bldgs,"Improvement works to the overflow car park at Worden Park, Leyland",22/12/2020,0000461136,"8,924.49",Revenue,A & G Landscapes & Groundworks LTD,0
South Ribble Borough Council,http://statistics.data.gov.uk/id/local-authority/30UE,Capital,,Area 3 - Parks/Leyland East West,Cap Contract Payment,C230,Capital Other Land & Bldgs,,22/12/2020,0000461136,"1,500.00",Revenue,A & G Landscapes & Groundworks LTD,0
South Ribble Borough Council,http://statistics.data.gov.uk/id/local-authority/30UE,Capital,,Area 3 - Parks/Leyland East West,Cap Contract Payment,C230,Capital Other Land & Bldgs,"Improvement works to the overflow car park at Worden Park, Leyland",18/12/2020,0000461196,"1,828.00",Revenue,A & G Landscapes & Groundworks LTD,0
South Ribble Borough Council,http://statistics.data.gov.uk/id/local-authority/30UE,Capital,,Area 3 - Parks/Leyland East West,Cap Contract Payment,C230,Capital Other Land & Bldgs,LABOUR,18/12/2020,0000461196,500.00,Revenue,A & G Landscapes & Groundworks LTD,0
South Ribble Borough Council,http://statistics.data.gov.uk/id/local-authority/30UE,Recycling,,Area 2 - Waste Transport/Eastern & Central Teams,Materials General,4040,Furniture- Equip & Materials,"36x 360l bins: grey body/orange lid, 10x 360l lids: orange, 12x 1100l bin: grey body/orange lid & lock, 8x 1100l bin: grey body/red lid ",18/12/2020,0000461137,"4,295.80",Revenue,A&C Weber UK Ltd,0
South Ribble Borough Council,http://statistics.data.gov.uk/id/local-authority/30UE,Community Development,,Regeneration,Miscellaneous Expenses,4851,Miscellaneous Expenses,6 ipads ref quote number QUO-252966-Y3139,16/12/2020,0000461138,"5,412.00",Revenue,ACS SYSTEMS UK LTD,0
South Ribble Borough Council,http://statistics.data.gov.uk/id/local-authority/30UE,Surplus or Deficit on Trading,,Property Services,Reactive Repair & Maintenance,2020,Premises Repair & Mtne,"Please undertake a survey and repair of Display Greenhouse House, Worden Park, Leyland as per your ref MD20/01 Worden Park",16/12/2020,0000460969,"5,800.00",Revenue,Alitex Ltd,0
South Ribble Borough Council,http://statistics.data.gov.uk/id/local-authority/30UE,Recreation & Sport,,Healthy Communities,Publicity & Promotion,4842,Miscellaneous Expenses,"14 x Argonaut Jacket, sizes various. Price - 1001.12+VAT",18/12/2020,0000460596,"1,001.12",Revenue,Alpkit Ltd,0
South Ribble Borough Council,http://statistics.data.gov.uk/id/local-authority/30UE,Capital,,Housing,Capital Grant,C570,Deferrd Chgs-Improvemnt Grants,DFG WORK TO ADAPT A LEVEL ACCESS BATHROOM AT ADDRESS REDACTED AS PER QUOTE SUPPLIED OF 5991.44,22/12/2020,0000461418,"5,293.24",Revenue,APG DOMESTIC SERVICES,0
South Ribble Borough Council,http://statistics.data.gov.uk/id/local-authority/30UE,Capital,,Housing,Cap Contract Payment,C230,Capital Other Land & Bldgs,"To carry out conversion works and create 9 self contained flats as tendered at Pearson House, work to commence 1st June 2020",02/12/2020,0000460616,"24,600.00",Revenue,ASH BARN CONSTRUCTION LTD,0
South Ribble Borough Council,http://statistics.data.gov.uk/id/local-authority/30UE,Central Support Services,,Shared Assurance Services,Other Fees,4520,Services,"Extension of NAME REDACTED Audit contract for another 3 months (End of January). 1,875 plus VAT for 3 months services.",22/12/2020,0000460210,"1,875.00",Revenue,Ashley Kate HR Limited,0
South Ribble Borough Council,http://statistics.data.gov.uk/id/local-authority/30UE,Recycling,,Area 2 - Waste Transport/Eastern & Central Teams,Publicity & Promotion,4842,Miscellaneous Expenses,8000x Christmas Collection Stickers as per quote 156854.,04/12/2020,0000460646,470.00,Revenue,B & D PRINT SERVICES LTD,0
South Ribble Borough Council,http://statistics.data.gov.uk/id/local-authority/30UE,Recycling,,Area 2 - Waste Transport/Eastern & Central Teams,Publicity & Promotion,4842,Miscellaneous Expenses,Bin Handle Tags as per quote 167656,18/12/2020,0000460249,"2,000.00",Revenue,BHW PRINT GROUP LIMITED,0
South Ribble Borough Council,http://statistics.data.gov.uk/id/local-authority/30UE,Recycling,,Area 2 - Waste Transport/Eastern & Central Teams,Publicity & Promotion,4842,Miscellaneous Expenses,Bin Handle Tags as per quote 167656,18/12/2020,0000460249,"2,202.00",Revenue,BHW PRINT GROUP LIMITED,0
South Ribble Borough Council,http://statistics.data.gov.uk/id/local-authority/30UE,Recreation & Sport,,Healthy Communities,Materials General,4040,Furniture- Equip & Materials,Safaball Soft Touch Handballs - Bag of 10 x 2 Baden zone Basketball - Bag of 10 x 3 New Age Bowls Set x 1,02/12/2020,0000460192,399.95,Revenue,Bishop Sports & Leisure Ltd,0
South Ribble Borough Council,http://statistics.data.gov.uk/id/local-authority/30UE,Recreation & Sport,,Healthy Communities,Materials General,4040,Furniture- Equip & Materials,Arrows Archery Ten Bow Pack 660 + VAT Total - 792,04/12/2020,0000460669,666.50,Revenue,Bishop Sports & Leisure Ltd,0
South Ribble Borough Council,http://statistics.data.gov.uk/id/local-authority/30UE,Central Support Services,,Neighbourhood Admin & Support,Materials General,4040,Furniture- Equip & Materials,12 x derby slimline litter bin with ashtray (blue) (BX45 2596) 230.00 each 352447/#REV2/SM,09/12/2020,0000460783,"2,760.00",Revenue,BROXAP LTD,0
South Ribble Borough Council,http://statistics.data.gov.uk/id/local-authority/30UE,Open Spaces,,Area 3 - Parks/Leyland East West,Operational Equip & Tools,4010,Furniture- Equip & Materials,Makita DTW190Z Impact Wrench Body,18/12/2020,0000461171,84.00,Revenue,C & W BERRY LTD,0
South Ribble Borough Council,http://statistics.data.gov.uk/id/local-authority/30UE,Open Spaces,,Area 3 - Parks/Leyland East West,Operational Equip & Tools,4010,Furniture- Equip & Materials,Makita DUT130Z Mixer Body,18/12/2020,0000461171,220.80,Revenue,C & W BERRY LTD,0
South Ribble Borough Council,http://statistics.data.gov.uk/id/local-authority/30UE,Open Spaces,,Area 3 - Parks/Leyland East West,Operational Equip & Tools,4010,Furniture- Equip & Materials,Paddle to suit Mixer (05058619),18/12/2020,0000461171,6.80,Revenue,C & W BERRY LTD,0
South Ribble Borough Council,http://statistics.data.gov.uk/id/local-authority/30UE,Central Support Services,,Area 2 - Waste Transport/Eastern & Central Teams,External Contractors Charges,4570,Services,Accident Damage Repairs PO20 ZRX JFC15519,09/12/2020,0000460797,"3,372.44",Revenue,C P DAVIDSON & SONS LTD,0
South Ribble Borough Council,http://statistics.data.gov.uk/id/local-authority/30UE,Central Support Services,,Area 2 - Waste Transport/Eastern & Central Teams,Hiring Expenses,3212,Contract Hire & Operating Leas,Hire of Refuse Wagon to cover PO20 ZRX 5.10.20 for 20 days,22/12/2020,0000460848,"3,420.00",Revenue,C P DAVIDSON & SONS LTD,0
South Ribble Borough Council,http://statistics.data.gov.uk/id/local-authority/30UE,Central Support Services,,Area 2 - Waste Transport/Eastern & Central Teams,Hiring Expenses,3212,Contract Hire & Operating Leas,Damage to hired vehicle PO15 FNT - to be recharged to FCC,18/12/2020,0000461167,453.48,Revenue,C P DAVIDSON & SONS LTD,0
South Ribble Borough Council,http://statistics.data.gov.uk/id/local-authority/30UE,Central Support Services,,Revenues Plus,Other Fees,4520,Services,3 days consultancy for automation and subsidy,02/12/2020,0000459330,"3,600.00",Revenue,CAPITA BUSINESS SERVICES LTD,0
South Ribble Borough Council,http://statistics.data.gov.uk/id/local-authority/30UE,Recreation & Sport,,Environmental Health,Licences Fee General,488B,Miscellaneous Expenses,mgmt fee,09/12/2020,0000460911,"1,125.00",Revenue,Carr Street Community Centre,0
South Ribble Borough Council,http://statistics.data.gov.uk/id/local-authority/30UE,Central Support Services,,HR & Communications,Publications General,4140,Printing- Stat & Office Expens,JOB ADVERT FOR TEMPORARY ENVIRONMENTAL HEALTH TEAM MANAGER,04/12/2020,0000460478,800.00,Revenue,CHARTERED INST OF ENVIRONMENTAL HEALTH,0
South Ribble Borough Council,http://statistics.data.gov.uk/id/local-authority/30UE,Central Support Services,,Property Services,Reactive Repair & Maintenance,2020,Premises Repair & Mtne,2020 / 2021 Cost for 3 x room integrity tests at the Civic Centre as per your ref SQCMMB050319-B,18/12/2020,0000461183,"1,239.60",Revenue,CHUBB LTD,0
South Ribble Borough Council,http://statistics.data.gov.uk/id/local-authority/30UE,Corporate Management,,Property Services,Fixtures and Fittings,2611,Fixtures and Fittings,"1 x 50`` 4K HDR UHD Smart LED TV, 1 x   43`` 4K HDR UHD Smart LED TV & 2 x Tilting TV Wall Bracket Mount Installation Kit",16/12/2020,0000460800,664.00,Revenue,CPC Re: COMBINED PRECISION COMPONENTS PLC,0
South Ribble Borough Council,http://statistics.data.gov.uk/id/local-authority/30UE,Central Support Services,,Information Services,Computer Equipment,4241,Communications & Comuting,3 HP Laptops @ 479.00 each,22/12/2020,0000461299,"1,437.00",Revenue,CPC Re: COMBINED PRECISION COMPONENTS PLC,0
South Ribble Borough Council,http://statistics.data.gov.uk/id/local-authority/30UE,Local Tax Collection,,Revenues Plus,Postage General,4291,Communications & Comuting,Postage October to March 2021,02/12/2020,0000460519,441.76,Revenue,CRITIQOM,0
South Ribble Borough Council,http://statistics.data.gov.uk/id/local-authority/30UE,Local Tax Collection,,Revenues Plus,Postage General,4291,Communications & Comuting,Postage October to March 2021,09/12/2020,0000460885,454.70,Revenue,CRITIQOM,0
South Ribble Borough Council,http://statistics.data.gov.uk/id/local-authority/30UE,Local Tax Collection,,Revenues Plus,Postage General,4291,Communications & Comuting,Postage October to March 2021,16/12/2020,0000461124,357.72,Revenue,CRITIQOM,0
South Ribble Borough Council,http://statistics.data.gov.uk/id/local-authority/30UE,Local Tax Collection,,Revenues Plus,Postage General,4291,Communications & Comuting,Postage October to March 2021,22/12/2020,0000461276,343.75,Revenue,CRITIQOM,0
South Ribble Borough Council,http://statistics.data.gov.uk/id/local-authority/30UE,Local Tax Collection,,Revenues Plus,Postage General,4291,Communications & Comuting,Postage April to Sept 2020,22/12/2020,0000461460,290.40,Revenue,CRITIQOM,0
South Ribble Borough Council,http://statistics.data.gov.uk/id/local-authority/30UE,Central Support Services,,Area 2 - Waste Transport/Eastern & Central Teams,Materials General,4040,Furniture- Equip & Materials,"1 x top right hand cylinder panel, 1 x wooly right hand cylinder panel, 1 x start button, 1 x finger guard, VU11HSZ JFC15853",18/12/2020,0000461127,393.78,Revenue,DENNIS EAGLE LTD,0
South Ribble Borough Council,http://statistics.data.gov.uk/id/local-authority/30UE,Open Spaces,,Area 3 - Parks/Leyland East West,External Contractors Charges,4570,Services,50% reduction of the conifer hedge Lateral reduction of two oak trees Chip on site and stem timber to be taken away,18/12/2020,0000461296,916.67,Revenue,DISCOUNT TREE SERVICES LIMITED,0
South Ribble Borough Council,http://statistics.data.gov.uk/id/local-authority/30UE,Open Spaces,,Area 3 - Parks/Leyland East West,GM Refurbishment,4657,Expenses,Converting Centenary Seats to Evergreen 8No Sets @ 193.00 per set as per quotation on 16th September 2020 Including Delivery.,22/12/2020,0000461372,"1,616.00",Revenue,EARTH ANCHORS LTD,0
South Ribble Borough Council,http://statistics.data.gov.uk/id/local-authority/30UE,Central Support Services,,Information Services,Telecomms - Mobile,4260,Communications & Comuting,01 dec 2020,16/12/2020,0000461120,"4,187.64",Revenue,EE Ltd,0
South Ribble Borough Council,http://statistics.data.gov.uk/id/local-authority/30UE,Central Support Services,,Area 2 - Waste Transport/Eastern & Central Teams,Hiring Expenses,3212,Contract Hire & Operating Leas,Hire of 70/30 Refuse Truck VN63 UAH 28.8.20 - 4.9.20 7.9.20 - 11.9.20 14.9.20 - 18.9.20 21.9.20 - 25.9.20 28.9.20 - 30.9.20,09/12/2020,0000460496,"4,800.00",Revenue,Euro Municipals Ltd,0
South Ribble Borough Council,http://statistics.data.gov.uk/id/local-authority/30UE,Central Support Services,,Area 2 - Waste Transport/Eastern & Central Teams,Hiring Expenses,3212,Contract Hire & Operating Leas,Delivery charge,09/12/2020,0000460496,300.00,Revenue,Euro Municipals Ltd,0
South Ribble Borough Council,http://statistics.data.gov.uk/id/local-authority/30UE,Central Support Services,,Area 2 - Waste Transport/Eastern & Central Teams,Materials General,4040,Furniture- Equip & Materials,24 x bottom blades- BIN 1265,18/12/2020,0000460794,285.79,Revenue,F R SHARROCK LTD,0
South Ribble Borough Council,http://statistics.data.gov.uk/id/local-authority/30UE,Central Support Services,,Area 2 - Waste Transport/Eastern & Central Teams,Materials General,4040,Furniture- Equip & Materials,12 x cutting cylinders- BIN 1293,18/12/2020,0000460794,742.80,Revenue,F R SHARROCK LTD,0
South Ribble Borough Council,http://statistics.data.gov.uk/id/local-authority/30UE,Short Term Creditors,,Area 2 - Waste Transport/Eastern & Central Teams,Amount Paid,0030,Balance Sheet,Recycling - Retention Claim Back January  - June 2020,04/12/2020,0000460670,"23,877.81",Revenue,FCC Environment Services (UK) Ltd,0
South Ribble Borough Council,http://statistics.data.gov.uk/id/local-authority/30UE,Short Term Creditors,,Area 2 - Waste Transport/Eastern & Central Teams,Amount Paid,0030,Balance Sheet,Refuse - Retention Claim Back January  - June 2020,04/12/2020,0000460670,"17,536.30",Revenue,FCC Environment Services (UK) Ltd,0
South Ribble Borough Council,http://statistics.data.gov.uk/id/local-authority/30UE,Short Term Creditors,,Area 2 - Waste Transport/Eastern & Central Teams,Amount Paid,0030,Balance Sheet,Clinical Waste - Retention Claim Back January  - June 2020,04/12/2020,0000460670,80.01,Revenue,FCC Environment Services (UK) Ltd,0
South Ribble Borough Council,http://statistics.data.gov.uk/id/local-authority/30UE,Short Term Creditors,,Area 2 - Waste Transport/Eastern & Central Teams,Amount Paid,0030,Balance Sheet,Bulky Waste - Retention Claim Back January  - June 2020,04/12/2020,0000460670,229.95,Revenue,FCC Environment Services (UK) Ltd,0
South Ribble Borough Council,http://statistics.data.gov.uk/id/local-authority/30UE,Waste Collection,,Area 2 - Waste Transport/Eastern & Central Teams,External Contractors Charges,4570,Services,Additional WEEE Collections November 2020,11/12/2020,0000461067,632.16,Revenue,FCC Environment Services (UK) Ltd,0
South Ribble Borough Council,http://statistics.data.gov.uk/id/local-authority/30UE,Waste Collection,,Area 2 - Waste Transport/Eastern & Central Teams,External Contractors Charges,4570,Services,Additional Bulky Waste Collections November 2020,11/12/2020,0000461067,"1,047.20",Revenue,FCC Environment Services (UK) Ltd,0
South Ribble Borough Council,http://statistics.data.gov.uk/id/local-authority/30UE,Short Term Creditors,,Area 2 - Waste Transport/Eastern & Central Teams,Amount Paid,0030,Balance Sheet,retention,11/12/2020,0000461067,-83.97,Revenue,FCC Environment Services (UK) Ltd,0
South Ribble Borough Council,http://statistics.data.gov.uk/id/local-authority/30UE,Waste Collection,,Area 2 - Waste Transport/Eastern & Central Teams,External Contractors Charges,4570,Services,Residual Waste Collections November 2020,18/12/2020,0000461068,"45,357.97",Revenue,FCC Environment Services (UK) Ltd,0
South Ribble Borough Council,http://statistics.data.gov.uk/id/local-authority/30UE,Recycling,,Area 2 - Waste Transport/Eastern & Central Teams,External Contractors Charges,4570,Services,Dry Recycling Non Terraced Collections November 2020,18/12/2020,0000461068,"46,434.12",Revenue,FCC Environment Services (UK) Ltd,0
South Ribble Borough Council,http://statistics.data.gov.uk/id/local-authority/30UE,Recycling,,Area 2 - Waste Transport/Eastern & Central Teams,External Contractors Charges,4570,Services,Dry Recyclable Terraced November 2020,18/12/2020,0000461068,"2,210.11",Revenue,FCC Environment Services (UK) Ltd,0
South Ribble Borough Council,http://statistics.data.gov.uk/id/local-authority/30UE,Recycling,,Area 2 - Waste Transport/Eastern & Central Teams,External Contractors Charges,4570,Services,Organic Waste Collections Non Terraced November 2020,18/12/2020,0000461068,"32,150.89",Revenue,FCC Environment Services (UK) Ltd,0
South Ribble Borough Council,http://statistics.data.gov.uk/id/local-authority/30UE,Trade Waste,,Area 2 - Waste Transport/Eastern & Central Teams,External Contractors Charges,4570,Services,Schedule 2 Properties November 2020,18/12/2020,0000461068,"1,848.87",Revenue,FCC Environment Services (UK) Ltd,0
South Ribble Borough Council,http://statistics.data.gov.uk/id/local-authority/30UE,Trade Waste,,Area 2 - Waste Transport/Eastern & Central Teams,External Contractors Charges,4570,Services,Commercial Waste Collections November 2020,18/12/2020,0000461068,"7,199.29",Revenue,FCC Environment Services (UK) Ltd,0
South Ribble Borough Council,http://statistics.data.gov.uk/id/local-authority/30UE,Waste Collection,,Area 2 - Waste Transport/Eastern & Central Teams,External Contractors Charges,4570,Services,Bulky Waste Collections November 2020,18/12/2020,0000461068,999.06,Revenue,FCC Environment Services (UK) Ltd,0
South Ribble Borough Council,http://statistics.data.gov.uk/id/local-authority/30UE,Waste Collection,,Area 2 - Waste Transport/Eastern & Central Teams,External Contractors Charges,4570,Services,WEEE Collections November 2020,18/12/2020,0000461068,375.27,Revenue,FCC Environment Services (UK) Ltd,0
South Ribble Borough Council,http://statistics.data.gov.uk/id/local-authority/30UE,Waste Collection,,Area 2 - Waste Transport/Eastern & Central Teams,External Contractors Charges,4570,Services,Clinical Waste Collections November 2020,18/12/2020,0000461068,639.30,Revenue,FCC Environment Services (UK) Ltd,0
South Ribble Borough Council,http://statistics.data.gov.uk/id/local-authority/30UE,Waste Collection,,Area 2 - Waste Transport/Eastern & Central Teams,External Contractors Charges,4570,Services,Replacement Bins November 2020,18/12/2020,0000461068,"5,000.00",Revenue,FCC Environment Services (UK) Ltd,0
South Ribble Borough Council,http://statistics.data.gov.uk/id/local-authority/30UE,Waste Collection,,Area 2 - Waste Transport/Eastern & Central Teams,External Contractors Charges,4570,Services,ADDITIONAL PROPERTIES November 2020,18/12/2020,0000461068,"3,984.00",Revenue,FCC Environment Services (UK) Ltd,0
South Ribble Borough Council,http://statistics.data.gov.uk/id/local-authority/30UE,Short Term Creditors,,Area 2 - Waste Transport/Eastern & Central Teams,Amount Paid,0030,Balance Sheet,refuse retention,18/12/2020,0000461068,"-3,020.19",Revenue,FCC Environment Services (UK) Ltd,0
South Ribble Borough Council,http://statistics.data.gov.uk/id/local-authority/30UE,Short Term Creditors,,Area 2 - Waste Transport/Eastern & Central Teams,Amount Paid,0030,Balance Sheet,recycling retention,18/12/2020,0000461068,"-4,039.76",Revenue,FCC Environment Services (UK) Ltd,0
South Ribble Borough Council,http://statistics.data.gov.uk/id/local-authority/30UE,Waste Collection,,Area 2 - Waste Transport/Eastern & Central Teams,External Contractors Charges,4570,Services,Additional Clinical Waste Collections November 2020,18/12/2020,0000461141,532.22,Revenue,FCC Environment Services (UK) Ltd,0
South Ribble Borough Council,http://statistics.data.gov.uk/id/local-authority/30UE,Short Term Creditors,,Area 2 - Waste Transport/Eastern & Central Teams,Amount Paid,0030,Balance Sheet,retention,18/12/2020,0000461141,-26.61,Revenue,FCC Environment Services (UK) Ltd,0
South Ribble Borough Council,http://statistics.data.gov.uk/id/local-authority/30UE,Homelessness,,Homelessness,Contributions to Other Bodies,4730,Grants & Subscriptions,Bond and rent in advance in respect of NAME REDACTED,09/12/2020,0000460293,"1,050.00",Revenue,Fidelis Legal Services Ltd,0
South Ribble Borough Council,http://statistics.data.gov.uk/id/local-authority/30UE,Central Support Services,,Planning,Miscellaneous Expenses,4851,Miscellaneous Expenses,"HP ref P2V89A No 766 Cyan ink cartridge, HP ref P2V92A No766 Matte Black ink cartridge, 2 x  110m 90gsm rolls of plot paper ",04/12/2020,0000460511,334.75,Revenue,GCS UK ASSOCIATES LTD,0
South Ribble Borough Council,http://statistics.data.gov.uk/id/local-authority/30UE,Development Control,,Planning,Operational Equip & Tools,4010,Furniture- Equip & Materials,"Items Covered - Model: HPT3500.   Serial Number: CN46B2H050 Expiry: 16/01/2021 Un-limited breakdown calls travel, attendanc",11/12/2020,0000460900,945.00,Revenue,GCS UK ASSOCIATES LTD,0
South Ribble Borough Council,http://statistics.data.gov.uk/id/local-authority/30UE,Central Support Services,,Area 2 - Waste Transport/Eastern & Central Teams,Materials General,4040,Furniture- Equip & Materials,3 x safety arms- BIN G015,18/12/2020,0000460791,394.28,Revenue,GEESINK NORBA LTD,0
South Ribble Borough Council,http://statistics.data.gov.uk/id/local-authority/30UE,Central Support Services,,Area 2 - Waste Transport/Eastern & Central Teams,Materials General,4040,Furniture- Equip & Materials,"2 x Yoke rams, 2 yoke pins & 4 bushes YD19 ATK JFC15740",18/12/2020,0000460792,"1,684.08",Revenue,GEESINK NORBA LTD,0
South Ribble Borough Council,http://statistics.data.gov.uk/id/local-authority/30UE,Central Support Services,,Area 2 - Waste Transport/Eastern & Central Teams,Materials General,4040,Furniture- Equip & Materials,DELIVERY,18/12/2020,0000460792,50.00,Revenue,GEESINK NORBA LTD,0
South Ribble Borough Council,http://statistics.data.gov.uk/id/local-authority/30UE,Central Support Services,,Legal,Legal,4821,Miscellaneous Expenses,"PROFESSIONAL SERVICES WITH REGARD TO WAINHOMES NORTH WEST LTD - REAR OF OAKDENE, CHAIN HOUSE LANE",16/12/2020,0000461143,350.00,Revenue,Giles Cannock,0
South Ribble Borough Council,http://statistics.data.gov.uk/id/local-authority/30UE,Surplus or Deficit on Trading,,Property Services,Reactive Repair & Maintenance,2020,Premises Repair & Mtne,"Annual Contract for the maintenance of flagpoles Worden Park, Hurst Grange Park, Civic Centre ",16/12/2020,0000460666,250.00,Revenue,GLASSFIBRE FLAGPOLES LTD,0
South Ribble Borough Council,http://statistics.data.gov.uk/id/local-authority/30UE,Surplus or Deficit on Trading,,Property Services,Reactive Repair & Maintenance,2020,Premises Repair & Mtne,"Annual Contract for the maintenance of flagpoles Worden Park, Hurst Grange Park, Civic Centre ",16/12/2020,0000460667,289.00,Revenue,GLASSFIBRE FLAGPOLES LTD,0
South Ribble Borough Council,http://statistics.data.gov.uk/id/local-authority/30UE,Surplus or Deficit on Trading,,Property Services,Reactive Repair & Maintenance,2020,Premises Repair & Mtne,"Annual Contract for the maintenance of flagpoles Worden Park, Hurst Grange Park, Civic Centre ",16/12/2020,0000460668,250.00,Revenue,GLASSFIBRE FLAGPOLES LTD,0
South Ribble Borough Council,http://statistics.data.gov.uk/id/local-authority/30UE,Short Term Creditors,,Revenues Plus,Manual Control,0001,Balance Sheet,,22/12/2020,0000460605,345.08,Revenue,NAME REDACTED,0
South Ribble Borough Council,http://statistics.data.gov.uk/id/local-authority/30UE,Central Support Services,,Neighbourhood Admin & Support,Materials General,4040,Furniture- Equip & Materials,GRAFFITI REMOVER TRANSGEL (5 LITRE),22/12/2020,0000461074,598.50,Revenue,Graffiti Removal Ltd,0
South Ribble Borough Council,http://statistics.data.gov.uk/id/local-authority/30UE,Central Support Services,,HR & Communications,Short Course,1402,Training Expenses,NAME REDACTED TO ATTEND `TRAILER TRAINING AND TEST - DATE TO BE CONFIRMED AT GARSTANG.,16/12/2020,0000460902,411.00,Revenue,Green Pass Training,0
South Ribble Borough Council,http://statistics.data.gov.uk/id/local-authority/30UE,Central Support Services,,HR & Communications,Short Course,1402,Training Expenses,NAME REDACTED TO ATTEND `TRAILER TRAINING AND TEST - DATE TO BE CONFIRMED AT GARSTANG.,16/12/2020,0000460902,411.00,Revenue,Green Pass Training,0
South Ribble Borough Council,http://statistics.data.gov.uk/id/local-authority/30UE,Central Support Services,,HR & Communications,Short Course,1402,Training Expenses,NAME REDACTED TO ATTEND `TRAILER TRAINING AND TEST - DATE TO BE CONFIRMED AT GARSTANG.,16/12/2020,0000460902,411.00,Revenue,Green Pass Training,0
South Ribble Borough Council,http://statistics.data.gov.uk/id/local-authority/30UE,Central Support Services,,HR & Communications,Short Course,1402,Training Expenses,NAME REDACTED TO ATTEND `TRAILER TRAINING AND TEST - DATE TO BE CONFIRMED AT GARSTANG.,16/12/2020,0000460902,411.00,Revenue,Green Pass Training,0
South Ribble Borough Council,http://statistics.data.gov.uk/id/local-authority/30UE,Central Support Services,,Area 2 - Waste Transport/Eastern & Central Teams,Materials General,4040,Furniture- Equip & Materials,Various Filters,18/12/2020,0000461130,710.61,Revenue,H & J SERVICES LTD,0
South Ribble Borough Council,http://statistics.data.gov.uk/id/local-authority/30UE,Capital,,Housing,Capital Grant,C570,Deferrd Chgs-Improvemnt Grants,DFG ADAPTATION FOR LEVEL ACCESS SHOWER AT ADDRESS REDACTED AS PER YOUR QUOTE SUPPLIED OF 5909.00,04/12/2020,0000460850,"5,909.00",Revenue,Hall Building Contractors Ltd,0
South Ribble Borough Council,http://statistics.data.gov.uk/id/local-authority/30UE,Central Support Services,,Neighbourhood Admin & Support,Materials General,4040,Furniture- Equip & Materials,Shortfall on remake of black sacks,18/12/2020,0000461293,673.20,Revenue,HARRISONS PACKAGING LTD,0
South Ribble Borough Council,http://statistics.data.gov.uk/id/local-authority/30UE,Central Support Services,,Neighbourhood Admin & Support,Materials General,4040,Furniture- Equip & Materials,60000 Black sacks 455 x 760 x 990mm Black - Printed White ``Keep South Ribble Tidy`` 200g Bi Modular Plus 83.54 per 1000,18/12/2020,0000461295,"5,012.40",Revenue,HARRISONS PACKAGING LTD,0
South Ribble Borough Council,http://statistics.data.gov.uk/id/local-authority/30UE,Corporate Management,,Homelessness,Temporary Accommodation,5311,Contractors Chges,kennel fees - NAME REDACTED dogs x 2 13.07.20 - 02.09.20,02/12/2020,0000460642,780.00,Revenue,HIGH HEYES KENNELS,0
South Ribble Borough Council,http://statistics.data.gov.uk/id/local-authority/30UE,Recreation & Sport,,Environmental Health,Licences Fee General,488B,Miscellaneous Expenses,mgmt fee,11/12/2020,0000460910,"1,000.00",Revenue,HIGHER WALTON COMMUNITY CENTRE,0
South Ribble Borough Council,http://statistics.data.gov.uk/id/local-authority/30UE,Corporate Management,,Homelessness,Temporary Accommodation,5311,Contractors Chges,SRBC placement for NAME REDACTED during pandemic 2/6/20 - 7/07/20,16/12/2020,0000461144,"2,275.00",Revenue,HILL VIEW (PRIVATE HOTEL),0
South Ribble Borough Council,http://statistics.data.gov.uk/id/local-authority/30UE,Homelessness,,Homelessness,Temporary Accommodation,5311,Contractors Chges,placement for NAME REDACTED Hillview hotel 50 pn,16/12/2020,0000461145,"2,255.00",Revenue,HILL VIEW (PRIVATE HOTEL),0
South Ribble Borough Council,http://statistics.data.gov.uk/id/local-authority/30UE,Short Term Creditors,,Shared Financial Services,Amount Received,0140,Balance Sheet,,16/12/2020,0000459948,"1,457.36",Revenue,HM REVENUE & CUSTOMS,0
South Ribble Borough Council,http://statistics.data.gov.uk/id/local-authority/30UE,Short Term Creditors,,Shared Financial Services,Amount Received,0140,Balance Sheet,,16/12/2020,0000460595,300.00,Revenue,HM REVENUE & CUSTOMS,0
South Ribble Borough Council,http://statistics.data.gov.uk/id/local-authority/30UE,Central Support Services,,Legal,Legal,4821,Miscellaneous Expenses,PROFESSIONAL SERVICES WITH REGARD ADDRESS REDACTED (APPEAL),02/12/2020,0000460512,"2,350.00",Revenue,HUGH DERBYSHIRE,0
South Ribble Borough Council,http://statistics.data.gov.uk/id/local-authority/30UE,Development Control,,Planning,Legal,4821,Miscellaneous Expenses,"Expert witness at Planning Appeal - outline planning application for development of 100 homes at Chain House Lane, Whitestake",04/12/2020,0000460619,"3,390.00",Revenue,Iceni Projects Limited,0
South Ribble Borough Council,http://statistics.data.gov.uk/id/local-authority/30UE,Central Support Services,,Information Services,Applications Systems,4248,Communications & Comuting,"Elections Maintenance Renewal for period 16 January 2021 to 15 January 2022, Quotation Reference: 3502049SOU009160121",16/12/2020,0000461146,"16,367.25",Revenue,IDOX PLC,0
South Ribble Borough Council,http://statistics.data.gov.uk/id/local-authority/30UE,Central Support Services,,Revenues Plus,Other Fees,4520,Services,irrv breathing space training,22/12/2020,0000460533,400.00,Revenue,INST OF REVENUES RATING & VALUATION,0
South Ribble Borough Council,http://statistics.data.gov.uk/id/local-authority/30UE,Capital,,Area 3 - Parks/Leyland East West,Cap Contract Payment,C230,Capital Other Land & Bldgs,"Architects Fees for Stages 5 and 6, Hurst Grange Coach House, Penwortham",02/12/2020,0000460665,"2,675.00",Revenue,Ivan Wilson Architect,0
South Ribble Borough Council,http://statistics.data.gov.uk/id/local-authority/30UE,Surplus or Deficit on Trading,,Property Services,Reactive Repair & Maintenance,2020,Premises Repair & Mtne,"Annual Contract for 2020 - 2021 for the maintenance of the Trend BMS HVAC 4 x day visits (TBA)  June, Sept, Dec, March ",18/12/2020,0000461186,424.00,Revenue,JBC CONTROL SYSTEM,0
South Ribble Borough Council,http://statistics.data.gov.uk/id/local-authority/30UE,Central Support Services,,Area 2 - Waste Transport/Eastern & Central Teams,Materials General,4040,Furniture- Equip & Materials,1 Camera RV14 DTZ JFC15786,18/12/2020,0000461147,291.01,Revenue,JOHNSTON SWEEPERS LTD,0
South Ribble Borough Council,http://statistics.data.gov.uk/id/local-authority/30UE,Development Control,,Planning,Advertising,4841,Miscellaneous Expenses,Press notices in the Lancashire Evening Post for Planning Applications July 2020 to March 2021,02/12/2020,0000460288,891.00,Revenue,JPI Media - JOHNSTON PUBLISHING (NORTH WEST),0
South Ribble Borough Council,http://statistics.data.gov.uk/id/local-authority/30UE,Development Control,,Planning,Advertising,4841,Miscellaneous Expenses,Press notices in the Lancashire Evening Post for Planning Applications July 2020 to March 2021,04/12/2020,0000460790,810.00,Revenue,JPI Media - JOHNSTON PUBLISHING (NORTH WEST),0
South Ribble Borough Council,http://statistics.data.gov.uk/id/local-authority/30UE,Street Cleansing,,Area 1 - Penwortham Western Parishes,External Contractors Charges,4570,Services,Provide high speed lane closures  & Chapter 8 Traffic Management 5 x nights (12/10/20 - 16/10/20) 3 x days (19/10/20 - 21/10/20),02/12/2020,0000460521,"5,800.00",Revenue,KAYS TRAFFIC MANAGEMENT LTD,0
South Ribble Borough Council,http://statistics.data.gov.uk/id/local-authority/30UE,Regulatory Services,,Environmental Health,External Contractors Charges,4570,Services,Removal of trees at ADDRESS REDACTED as per NAME REDACTED.,22/12/2020,0000461131,860.00,Revenue,Ken Linford Gardencare Limited,0
South Ribble Borough Council,http://statistics.data.gov.uk/id/local-authority/30UE,Corporate Management,,Property Services,Operational Equip & Tools,4010,Furniture- Equip & Materials,TRP119 50 TYPE IIR MASK PACK 50 15.00 EACH 750.00 as per NAME REDACTED,16/12/2020,0000460905,750.00,Revenue,KEY ENGINEERING & HYGIENE SUPPLIES LTD,0
South Ribble Borough Council,http://statistics.data.gov.uk/id/local-authority/30UE,Open Spaces,,Area 3 - Parks/Leyland East West,GM Refurbishment,4657,Expenses,En-INSP RP11 Inspection RP11 Post Installation,02/12/2020,0000460369,421.43,Revenue,KOMPAN LTD,0
South Ribble Borough Council,http://statistics.data.gov.uk/id/local-authority/30UE,Open Spaces,,Area 3 - Parks/Leyland East West,GM Refurbishment,4657,Expenses,contribution LEF Grant,22/12/2020,0000461478,"3,300.00",Revenue,Lancashire environmental fund,0
South Ribble Borough Council,http://statistics.data.gov.uk/id/local-authority/30UE,Trade Waste,,Area 2 - Waste Transport/Eastern & Central Teams,Landfilll Charges,5412,Waste Disposal,"Quarter 2 Disposal Fee, Landfill Tax & 5% Admin Fee",04/12/2020,0000460513,"58,508.06",Revenue,LANCS COUNTY COUNCIL,0
South Ribble Borough Council,http://statistics.data.gov.uk/id/local-authority/30UE,Central Support Services,,Area 2 - Waste Transport/Eastern & Central Teams,Materials General,4040,Furniture- Equip & Materials,1 x filter kit 20 litres of engine oil YD19AUN JFC15833,18/12/2020,0000461097,291.57,Revenue,LANCS DAF,0
South Ribble Borough Council,http://statistics.data.gov.uk/id/local-authority/30UE,Central Support Services,,Area 2 - Waste Transport/Eastern & Central Teams,Materials General,4040,Furniture- Equip & Materials,1 x track end YD19AUM JFC15865,18/12/2020,0000461172,434.45,Revenue,LANCS DAF,0
South Ribble Borough Council,http://statistics.data.gov.uk/id/local-authority/30UE,Central Support Services,,Area 2 - Waste Transport/Eastern & Central Teams,Materials General,4040,Furniture- Equip & Materials,1 set of brake pads 1 x bumper 1 x front fog YD19ATZ JFC15867,18/12/2020,0000461187,550.94,Revenue,LANCS DAF,0
South Ribble Borough Council,http://statistics.data.gov.uk/id/local-authority/30UE,Central Support Services,,Area 2 - Waste Transport/Eastern & Central Teams,Materials General,4040,Furniture- Equip & Materials,1 x front bumper BX19XBJ JFC15507,18/12/2020,0000461287,400.79,Revenue,LANCS DAF,0
South Ribble Borough Council,http://statistics.data.gov.uk/id/local-authority/30UE,Capital,,Area 3 - Parks/Leyland East West,Cap Contract Payment,C230,Capital Other Land & Bldgs,"Improvements to paths and fencing and installation of new pond overflow system, Tarn Wood, Penwortham",02/12/2020,0000460287,"30,214.88",Revenue,LANDSCAPE ENGINEERING LIMITED,0
South Ribble Borough Council,http://statistics.data.gov.uk/id/local-authority/30UE,Central Support Services,,Area 2 - Waste Transport/Eastern & Central Teams,Materials General,4040,Furniture- Equip & Materials,Ball Joint M26 x 1.5 SHORT,04/12/2020,0000460356,308.16,Revenue,Leyland Exports Ltd,0
South Ribble Borough Council,http://statistics.data.gov.uk/id/local-authority/30UE,Central Support Services,,Area 2 - Waste Transport/Eastern & Central Teams,Materials General,4040,Furniture- Equip & Materials,Ball Joint M26 x 1.5 LONG @ 154.08 Inbound freight 35.00,04/12/2020,0000460356,343.16,Revenue,Leyland Exports Ltd,0
South Ribble Borough Council,http://statistics.data.gov.uk/id/local-authority/30UE,Central Support Services,,Revenues Plus,Other Fees,4520,Services,CSE assessment fee,09/12/2020,0000460888,880.00,Revenue,M ASSESSMENT SERVICES,0
South Ribble Borough Council,http://statistics.data.gov.uk/id/local-authority/30UE,Open Spaces,,Neighbourhood Admin & Support,GM Refurbishment,4657,Expenses,20T GRADE 1 TOPSOIL - DELIVERED TO WORDEN PARK Please ring TELEPHONE NUMBERS REDACTED before delivery,04/12/2020,0000460882,460.00,Revenue,M C & M A STEWART HAULAGE LTD,0
South Ribble Borough Council,http://statistics.data.gov.uk/id/local-authority/30UE,Open Spaces,,Area 3 - Parks/Leyland East West,GM Refurbishment,4657,Expenses,20 tonne of stone to be delivered to Worden Park on Friday 2nd October.,11/12/2020,0000460883,455.90,Revenue,M C & M A STEWART HAULAGE LTD,0
South Ribble Borough Council,http://statistics.data.gov.uk/id/local-authority/30UE,Capital,,Housing,Capital Grant,C570,Deferrd Chgs-Improvemnt Grants,DFG WORKS FOR RAMP AT ADDRESS REDACTED New progress property so 50%  of quote of 3260.00 to be paid via the grant ,02/12/2020,0000460535,"1,630.00",Revenue,MAHONEY CONTRACTORS LTD,0
South Ribble Borough Council,http://statistics.data.gov.uk/id/local-authority/30UE,Capital,,Housing,Capital Grant,C570,Deferrd Chgs-Improvemnt Grants,DFG WORKS FOR LEVEL ACCESS SHOWER AT ADDRESS REDACTED  New progress property so 50%  to be paid via the grant ,04/12/2020,0000460842,"3,415.22",Revenue,MAHONEY CONTRACTORS LTD,0
South Ribble Borough Council,http://statistics.data.gov.uk/id/local-authority/30UE,Capital,,Housing,Capital Grant,C570,Deferrd Chgs-Improvemnt Grants,DFG WORKS FOR LEVEL ACCESS BATHROOM AT ADDRESS REDACTED. New progress property so 50% to be paid via grant ,04/12/2020,0000460855,"3,535.80",Revenue,MAHONEY CONTRACTORS LTD,0
South Ribble Borough Council,http://statistics.data.gov.uk/id/local-authority/30UE,Capital,,Housing,Capital Grant,C570,Deferrd Chgs-Improvemnt Grants,DFG WORKS FOR LEVEL ACCESS BATHROOM AT ADDRESS REDACTED. New progress property so 50% to be paid via grant,09/12/2020,0000460929,"3,500.37",Revenue,MAHONEY CONTRACTORS LTD,0
South Ribble Borough Council,http://statistics.data.gov.uk/id/local-authority/30UE,Capital,,Housing,Capital Grant,C570,Deferrd Chgs-Improvemnt Grants,DFG WORKS FOR LEVEL ACCESS BATHROOM AT ADDRESS REDACTED. New progress property so 50% to be paid via grant,16/12/2020,0000461188,"1,822.50",Revenue,MAHONEY CONTRACTORS LTD,0
South Ribble Borough Council,http://statistics.data.gov.uk/id/local-authority/30UE,Capital,,Housing,Capital Grant,C570,Deferrd Chgs-Improvemnt Grants,DFG WORKS FOR LEVEL ACCESS SHOWER AT ADDRESS REDACTED  New progress property so 50% to be paid via the grant ,22/12/2020,0000461403,"3,230.24",Revenue,MAHONEY CONTRACTORS LTD,0
South Ribble Borough Council,http://statistics.data.gov.uk/id/local-authority/30UE,Recreation & Sport,,Property Services,Fire Extinguishers - R&M,2037,Premises Repair & Mtne,"fire door survey at  625 + VAT at Kingsfold Community Centre  7th or 8th Dec, although this can be fitted in beyond these dates.",16/12/2020,0000461189,625.00,Revenue,Manchester Fire Compliance Ltd,0
South Ribble Borough Council,http://statistics.data.gov.uk/id/local-authority/30UE,Capital,,Housing,Cap Professional Fees,C210,Capital Other Land & Bldgs,Surveyor fees for 12 month maternity cover for DFG cases 20000,16/12/2020,0000461169,"2,348.00",Revenue,Mathew Butterworth Associates Limited,0
South Ribble Borough Council,http://statistics.data.gov.uk/id/local-authority/30UE,Recreation & Sport,,Environmental Health,Licences Fee General,488B,Miscellaneous Expenses,fee,09/12/2020,0000460926,"1,010.00",Revenue,MOSS SIDE COMMUNITY FORUM,0
South Ribble Borough Council,http://statistics.data.gov.uk/id/local-authority/30UE,Central Support Services,,Legal,Legal,4821,Miscellaneous Expenses,"PROFESSIONAL SERVICES - REAR  OAKDENE, CHAIN HOUSE LANE WAINHOMES - V SOUTH RIBBLE BOROUGH COUNCIL",22/12/2020,0000461149,337.50,Revenue,Mr Alan Evans,0
South Ribble Borough Council,http://statistics.data.gov.uk/id/local-authority/30UE,Central Support Services,,Legal,Legal,4821,Miscellaneous Expenses,"PROFESSIONAL SERVICES WITH REGARD TO LAND AT REAR OF OAKDENE, CHAINHOUSE LANE, WHITESTAKE.",22/12/2020,0000461280,"1,125.00",Revenue,Mr Alan Evans,0
South Ribble Borough Council,http://statistics.data.gov.uk/id/local-authority/30UE,Central Support Services,,Area 2 - Waste Transport/Eastern & Central Teams,External Contractors Charges,4570,Services,Spec Repair YA19 NGN JFC15762,18/12/2020,0000460515,"2,722.36",Revenue,Municipal Vehicle Services,0
South Ribble Borough Council,http://statistics.data.gov.uk/id/local-authority/30UE,Central Support Services,,Area 2 - Waste Transport/Eastern & Central Teams,Materials General,4040,Furniture- Equip & Materials,Service Wash 5.11.20 YD19 AUN,09/12/2020,0000460840,65.00,Revenue,NAYLORS TRANSPORT (LEYLAND) ltd,0
South Ribble Borough Council,http://statistics.data.gov.uk/id/local-authority/30UE,Central Support Services,,Area 2 - Waste Transport/Eastern & Central Teams,Materials General,4040,Furniture- Equip & Materials,Service Wash 6.11.20 YD19 ATY,09/12/2020,0000460840,65.00,Revenue,NAYLORS TRANSPORT (LEYLAND) ltd,0
South Ribble Borough Council,http://statistics.data.gov.uk/id/local-authority/30UE,Central Support Services,,Area 2 - Waste Transport/Eastern & Central Teams,Materials General,4040,Furniture- Equip & Materials,Service Wash 12.11.20 YD19AUT,09/12/2020,0000460840,65.00,Revenue,NAYLORS TRANSPORT (LEYLAND) ltd,0
South Ribble Borough Council,http://statistics.data.gov.uk/id/local-authority/30UE,Central Support Services,,Area 2 - Waste Transport/Eastern & Central Teams,Materials General,4040,Furniture- Equip & Materials,MOT Wash VU11 HSZ 24.11.20,09/12/2020,0000460840,75.00,Revenue,NAYLORS TRANSPORT (LEYLAND) ltd,0
South Ribble Borough Council,http://statistics.data.gov.uk/id/local-authority/30UE,Central Support Services,,Area 2 - Waste Transport/Eastern & Central Teams,Materials General,4040,Furniture- Equip & Materials,Service Wash 3.11.20 VO65 KRF,09/12/2020,0000460841,65.00,Revenue,NAYLORS TRANSPORT (LEYLAND) ltd,0
South Ribble Borough Council,http://statistics.data.gov.uk/id/local-authority/30UE,Central Support Services,,Area 2 - Waste Transport/Eastern & Central Teams,Materials General,4040,Furniture- Equip & Materials,Service Wash 9.11.20 PO20 ZRX,09/12/2020,0000460841,65.00,Revenue,NAYLORS TRANSPORT (LEYLAND) ltd,0
South Ribble Borough Council,http://statistics.data.gov.uk/id/local-authority/30UE,Central Support Services,,Area 2 - Waste Transport/Eastern & Central Teams,Materials General,4040,Furniture- Equip & Materials,Service Wash 10.11.20 PF18 JOV,09/12/2020,0000460841,65.00,Revenue,NAYLORS TRANSPORT (LEYLAND) ltd,0
South Ribble Borough Council,http://statistics.data.gov.uk/id/local-authority/30UE,Central Support Services,,Area 2 - Waste Transport/Eastern & Central Teams,Materials General,4040,Furniture- Equip & Materials,Service Wash 17.11.20 PO13 UUM,09/12/2020,0000460841,65.00,Revenue,NAYLORS TRANSPORT (LEYLAND) ltd,0
South Ribble Borough Council,http://statistics.data.gov.uk/id/local-authority/30UE,Central Support Services,,Area 2 - Waste Transport/Eastern & Central Teams,Materials General,4040,Furniture- Equip & Materials,Service Wash 24.11.20 PF18JOV,09/12/2020,0000460841,65.00,Revenue,NAYLORS TRANSPORT (LEYLAND) ltd,0
South Ribble Borough Council,http://statistics.data.gov.uk/id/local-authority/30UE,Central Support Services,,Area 2 - Waste Transport/Eastern & Central Teams,Materials General,4040,Furniture- Equip & Materials,Service Wash 25.11.20 VK20 NVV,09/12/2020,0000460841,65.00,Revenue,NAYLORS TRANSPORT (LEYLAND) ltd,0
South Ribble Borough Council,http://statistics.data.gov.uk/id/local-authority/30UE,Democratic Represent and  Mgnt,,Democratic Services,Members Training,1406,Training Expenses,3 SESSIONS OF `MEMBER DEVELOPMENT COACHING VIA ZOOM - DATES TO BE CONFIRMED,22/12/2020,0000461300,"3,150.00",Revenue,NORTH WEST EMPLOYERS,0
South Ribble Borough Council,http://statistics.data.gov.uk/id/local-authority/30UE,Corporate Management,,Property Services,Operational Equip & Tools,4010,Furniture- Equip & Materials,SU08C COSHH storage cabinet 1829x915x457   338.00 as per Optima ID 55910 as per NAME REDACTED request,02/12/2020,0000460238,338.00,Revenue,Northern Storage & Interiors Ltd,0
South Ribble Borough Council,http://statistics.data.gov.uk/id/local-authority/30UE,Central Support Services,,HR & Communications,Short Course,1402,Training Expenses,"NAME REDACTED TO ATTEND `FIRST AID FOR MENTAL HEALTH INSTRUCTOR ON 4,5 & 6 JAN AT HOLIDAY INN, BOLTON",16/12/2020,0000460621,399.00,Revenue,Nuco Training Ltd,0
South Ribble Borough Council,http://statistics.data.gov.uk/id/local-authority/30UE,Central Support Services,,Information Services,Network and Security,4247,Communications & Comuting,Combined Services for period 01/07/20 - 31/03/21,16/12/2020,0000461128,"2,542.72",Revenue,NVIRON LTD,0
South Ribble Borough Council,http://statistics.data.gov.uk/id/local-authority/30UE,Central Support Services,,Information Services,Network and Security,4247,Communications & Comuting,Combined Services for period 01/07/20 - 31/03/21,16/12/2020,0000461150,"4,945.15",Revenue,NVIRON LTD,0
South Ribble Borough Council,http://statistics.data.gov.uk/id/local-authority/30UE,Corporate Management,,Regeneration,Cost of Food,4310,Catering,Supply of food for holiday hunger project Christmas 2020,18/12/2020,0000461277,"3,300.00",Revenue,Oncore Trading,0
South Ribble Borough Council,http://statistics.data.gov.uk/id/local-authority/30UE,Corporate Management,,Regeneration,Cost of Food,4310,Catering,Supply of food for holiday hunger project Christmas 2020,18/12/2020,0000461277,"13,693.20",Revenue,Oncore Trading,0
South Ribble Borough Council,http://statistics.data.gov.uk/id/local-authority/30UE,Homelessness,,Homelessness,Void Loss,5313,Contractors Chges,8 weesk 2 days rent loss for: ADDRESS REDACTED void unit For the period; 2/4/20 to 1/6/20 ,16/12/2020,0000461151,760.46,Revenue,Onward Homes Ltd,0
South Ribble Borough Council,http://statistics.data.gov.uk/id/local-authority/30UE,Development Control,,Planning,Legal,4821,Miscellaneous Expenses,PLANNING APPEAL � REF REDACTED ADDRESS REDACTED Award made by the Planning Inspectorate for costs,16/12/2020,0000460829,"6,000.00",Revenue,P Wilson & Company,0
South Ribble Borough Council,http://statistics.data.gov.uk/id/local-authority/30UE,Central Support Services,,HR & Communications,Occupational Health,1408,Training Expenses,90 X FLU VOUCHERS,16/12/2020,0000461152,832.50,Revenue,People Asset Management,0
South Ribble Borough Council,http://statistics.data.gov.uk/id/local-authority/30UE,Central Support Services,,Planning,Agency Staff,1121,Salaries,Consultancy work for planning enforcement services,04/12/2020,0000460830,"1,311.00",Revenue,Planning Control & PACE Solutions,0
South Ribble Borough Council,http://statistics.data.gov.uk/id/local-authority/30UE,Central Support Services,,Planning,Agency Staff,1121,Salaries,Consultancy work for planning enforcement services,18/12/2020,0000461153,"1,425.00",Revenue,Planning Control & PACE Solutions,0
South Ribble Borough Council,http://statistics.data.gov.uk/id/local-authority/30UE,Central Support Services,,Planning,Agency Staff,1121,Salaries,zero vat,18/12/2020,0000461153,45.00,Revenue,Planning Control & PACE Solutions,0
South Ribble Borough Council,http://statistics.data.gov.uk/id/local-authority/30UE,Corporate Management,,Neighbourhood Admin & Support,Miscellaneous Expenses,4851,Miscellaneous Expenses,417054 - Pursan Hand Sanitiser 500ml,18/12/2020,0000461064,379.68,Revenue,PREMIER OFFICE SUPPLES (UK) LTD,0
South Ribble Borough Council,http://statistics.data.gov.uk/id/local-authority/30UE,Elections,,Democratic Services,Contract Printing,4127,Printing- Stat & Office Expens,PRINTING OF STAGE 4 CANVASS COMMUNICATIONS AND ENVELOPES (IN LINE WITH D ON ACK) JOB REF 7244,04/12/2020,0000460612,752.42,Revenue,PRINT IMAGE NETWORK LTD,0
South Ribble Borough Council,http://statistics.data.gov.uk/id/local-authority/30UE,Open Spaces,,Area 3 - Parks/Leyland East West,GM Refurbishment,4657,Expenses,1 x T852 Hip Hop Modification Your ref: 2009.27175,02/12/2020,0000459936,"2,432.55",Revenue,PROLUDIC LTD,0
South Ribble Borough Council,http://statistics.data.gov.uk/id/local-authority/30UE,Open Spaces,,Area 3 - Parks/Leyland East West,GM Refurbishment,4657,Expenses,Please supply spare parts for 1xo Junior Multi-climber rope tunnel as per reference no 2010.27570,22/12/2020,0000461440,996.66,Revenue,PROLUDIC LTD,0
South Ribble Borough Council,http://statistics.data.gov.uk/id/local-authority/30UE,Open Spaces,,Area 3 - Parks/Leyland East West,GM Refurbishment,4657,Expenses,Delivery,22/12/2020,0000461440,99.67,Revenue,PROLUDIC LTD,0
South Ribble Borough Council,http://statistics.data.gov.uk/id/local-authority/30UE,Surplus or Deficit on Trading,,Property Services,Reactive Repair & Maintenance,2020,Premises Repair & Mtne,Please manufacture & install a new door & casing to 15C Boxer place as per quotation Q3441,16/12/2020,0000460906,650.00,Revenue,PSR & Sons Joiners & Building Contractors,0
South Ribble Borough Council,http://statistics.data.gov.uk/id/local-authority/30UE,Surplus or Deficit on Trading,,Property Services,Reactive Repair & Maintenance,2020,Premises Repair & Mtne,LABOUR,16/12/2020,0000460906,60.00,Revenue,PSR & Sons Joiners & Building Contractors,0
South Ribble Borough Council,http://statistics.data.gov.uk/id/local-authority/30UE,Central Support Services,,Property Services,Reactive Repair & Maintenance,2020,Premises Repair & Mtne,To Supply and Install New Kick Boards around the Perimeter of new mezzanine floor using a 18 mm Birch ply core board.,16/12/2020,0000461133,450.00,Revenue,PSR & Sons Joiners & Building Contractors,0
South Ribble Borough Council,http://statistics.data.gov.uk/id/local-authority/30UE,Central Support Services,,Property Services,Reactive Repair & Maintenance,2020,Premises Repair & Mtne,LABOUR,16/12/2020,0000461133,80.00,Revenue,PSR & Sons Joiners & Building Contractors,0
South Ribble Borough Council,http://statistics.data.gov.uk/id/local-authority/30UE,Capital,,Regeneration,Cap Contract Payment,C230,Capital Other Land & Bldgs,Please undertake the ``Worden hall refurbishment project part to RIBA stage 3``,04/12/2020,0000460889,"12,784.03",Revenue,Purcell Architecture Limited,0
South Ribble Borough Council,http://statistics.data.gov.uk/id/local-authority/30UE,Homelessness,,Homelessness,Contributions to Other Bodies,4730,Grants & Subscriptions,Deposit & RIA NAME REDACTED ADDRESS REDACTED,02/12/2020,0000460538,655.00,Revenue,Reeds Rains,0
South Ribble Borough Council,http://statistics.data.gov.uk/id/local-authority/30UE,Tourism,,Property Services,Fuel Oil,2301,Energy Costs,"Please supply 3,000 ltrs of kerosene  to Worden Park PR5 1DJ -  contact NAME REDACTED TELEPHONE REDACTED for access ",02/12/2020,0000460661,"1,108.50",Revenue,RIBBLE FUEL OILS,0
South Ribble Borough Council,http://statistics.data.gov.uk/id/local-authority/30UE,Central Support Services,,Area 2 - Waste Transport/Eastern & Central Teams,Materials General,4040,Furniture- Equip & Materials,2 BATTERIES - VO65KRE - JFC15741,09/12/2020,0000460622,280.00,Revenue,RIBBLESDALE AUTO ELECTRICS 1992 LTD,0
South Ribble Borough Council,http://statistics.data.gov.uk/id/local-authority/30UE,Central Support Services,,Information Services,Photocopier Lease Rental,4036,Furniture- Equip & Materials,1/11/20 to 31/1/21,16/12/2020,0000461105,"5,851.63",Revenue,RICOH (UK) LTD,0
South Ribble Borough Council,http://statistics.data.gov.uk/id/local-authority/30UE,Central Support Services,,HR & Communications,Individual Subs Prof. Bodies,1741,Other Employee Expenses,MEMBERSHIP SUBSCRIPTION 2021 AND APC ASSESSMENT FEE FOR NAME REDACTED,18/12/2020,0000461113,663.00,Revenue,RICS,0
South Ribble Borough Council,http://statistics.data.gov.uk/id/local-authority/30UE,Economic Development,,Development Enterprise & Comm Mgnt,Economic Regeneration,485A,Miscellaneous Expenses,South Ribble Covid Safety Measures Retail video 1 day of filming in South Ribble. Footage edited to create approx 2-3 minute video,16/12/2020,0000461089,"1,345.00",Revenue,ROLAND TURNER,0
South Ribble Borough Council,http://statistics.data.gov.uk/id/local-authority/30UE,Surplus or Deficit on Trading,,Property Services,Water Charges(Metered),2511,Water,ADDRESS REDACTED,16/12/2020,0000460934,400.00,Revenue,ROUNDHOUSE PROPERTIES LTD,0
South Ribble Borough Council,http://statistics.data.gov.uk/id/local-authority/30UE,Surplus or Deficit on Trading,,Property Services,Service Charge,485C,Miscellaneous Expenses,ADDRESS REDACTED,16/12/2020,0000460935,400.00,Revenue,ROUNDHOUSE PROPERTIES LTD,0
South Ribble Borough Council,http://statistics.data.gov.uk/id/local-authority/30UE,Central Support Services,,Area 2 - Waste Transport/Eastern & Central Teams,Materials General,4040,Furniture- Equip & Materials,1 Packer Plate PJ62 UCM JFC15861,22/12/2020,0000461405,"1,855.00",Revenue,RTS Muni,0
South Ribble Borough Council,http://statistics.data.gov.uk/id/local-authority/30UE,Central Support Services,,Neighbourhood Admin & Support,Clothing and Uniforms,4410,"Clothes,uniform & laundry",2 cases (40) Disposable Face Masks @ 14.97 per box,02/12/2020,0000460610,"1,197.60",Revenue,Saanro International Ltd,0
South Ribble Borough Council,http://statistics.data.gov.uk/id/local-authority/30UE,Recreation & Sport,,Development Enterprise & Comm Mgnt,Serco Leisure Operating Ltd-R&M-Core Fee,4536,Services,R & M for 2020/2021,16/12/2020,0000460838,"14,801.50",Revenue,SERCO LEISURE (OP) LTD,0
South Ribble Borough Council,http://statistics.data.gov.uk/id/local-authority/30UE,Development Control,,Planning,Operational Equip & Tools,4010,Furniture- Equip & Materials,"Lease Rental 14 Nov 2020 - 13 Feb 2021 HP XL-3600 Wide Format Printer, 95L1H039",04/12/2020,0000460831,"1,015.29",Revenue,Siemens Financial Services Limited,0
South Ribble Borough Council,http://statistics.data.gov.uk/id/local-authority/30UE,Capital,,Area 3 - Parks/Leyland East West,Cap Contract Payment,C230,Capital Other Land & Bldgs,CDM Principal Designer Duties for Hurst Grange Park Coach House,22/12/2020,0000461483,"1,000.00",Revenue,SkW,0
South Ribble Borough Council,http://statistics.data.gov.uk/id/local-authority/30UE,Corporate Management,,Homelessness,Temporary Accommodation,5311,Contractors Chges,SRBC placements Smithy Lodge 25/10/20 - 31/10/20 1/11/20 - 7/11/20 8/11/20 - 14/11/20 15/11/20 - 21/11/20,09/12/2020,0000460921,"1,400.00",Revenue,SMITHY LODGE GUEST HOUSE,0
South Ribble Borough Council,http://statistics.data.gov.uk/id/local-authority/30UE,Corporate Management,,Homelessness,Temporary Accommodation,5311,Contractors Chges,SRBC placements Smithy Lodge 25/10/20 - 31/10/20 1/11/20 - 7/11/20 8/11/20 - 14/11/20 15/11/20 - 21/11/20,09/12/2020,0000460930,"1,400.00",Revenue,SMITHY LODGE GUEST HOUSE,0
South Ribble Borough Council,http://statistics.data.gov.uk/id/local-authority/30UE,Corporate Management,,Homelessness,Temporary Accommodation,5311,Contractors Chges,SRBC placements Smithy Lodge 25/10/20 - 31/10/20 1/11/20 - 7/11/20 8/11/20 - 14/11/20 15/11/20 - 21/11/20,09/12/2020,0000460932,"1,400.00",Revenue,SMITHY LODGE GUEST HOUSE,0
South Ribble Borough Council,http://statistics.data.gov.uk/id/local-authority/30UE,Corporate Management,,Homelessness,Temporary Accommodation,5311,Contractors Chges,SRBC placements Smithy Lodge 25/10/20 - 31/10/20 1/11/20 - 7/11/20 8/11/20 - 14/11/20 15/11/20 - 21/11/20,09/12/2020,0000460933,"1,400.00",Revenue,SMITHY LODGE GUEST HOUSE,0
South Ribble Borough Council,http://statistics.data.gov.uk/id/local-authority/30UE,Regulatory Services,,Environmental Health,External Contractors Charges,4570,Services,Quote for ADDRESS REDACTED - Clear garden etc per NAME REDACTED.,22/12/2020,0000461112,460.00,Revenue,SMJ CONTRACT CLEANING,0
South Ribble Borough Council,http://statistics.data.gov.uk/id/local-authority/30UE,Central Support Services,,Information Services,Software Licensing,4243,Communications & Comuting,"Egress renewal, as per quote OVREEA020I6K V2",16/12/2020,0000461071,"4,539.00",Revenue,SOFTCAT LIMITED,0
South Ribble Borough Council,http://statistics.data.gov.uk/id/local-authority/30UE,Central Support Services,,Information Services,Applications Systems,4248,Communications & Comuting,"Acrobat for Teams, Dreamweaver CC Team Licensing Subscription Renewal, InDesign CC and Photoshop CC as per quote",22/12/2020,0000461430,"2,744.30",Revenue,SOFTCAT LIMITED,0
South Ribble Borough Council,http://statistics.data.gov.uk/id/local-authority/30UE,Recreation & Sport,,Development Enterprise & Comm Mgnt,Leisure Services Fee - Core Fee,4532,Services,Leisure Services Fee 2020/2021,16/12/2020,0000460837,"24,780.09",Revenue,SOUTH RIBBLE COMMUNITY LEISURE LTD,0
South Ribble Borough Council,http://statistics.data.gov.uk/id/local-authority/30UE,Short Term Creditors,,Shared Financial Services,Amount Paid,0030,Balance Sheet,mthly deds,11/12/2020,0000460943,"1,496.66",Revenue,SOUTH RIBBLE LABOUR PARTY LOCAL GOVERNM,0
South Ribble Borough Council,http://statistics.data.gov.uk/id/local-authority/30UE,Central Support Services,,Area 2 - Waste Transport/Eastern & Central Teams,Materials General,4040,Furniture- Equip & Materials,8 x winter service kits @ 60 each - 307778  BIN 1230,04/12/2020,0000460276,480.00,Revenue,SPALDINGS,0
South Ribble Borough Council,http://statistics.data.gov.uk/id/local-authority/30UE,Short Term Creditors,,Shared Financial Services,Amount Paid,0030,Balance Sheet,mthly deds,11/12/2020,0000460946,416.64,Revenue,ST CATHERINES HOSPICE PROMOTIONS LTD,0
South Ribble Borough Council,http://statistics.data.gov.uk/id/local-authority/30UE,Service Management & Support,,Neighbourhood Admin & Support,Diesel Fuel,3132,Direct Transport Costs,16000 litres diesel @88.14 ppl into the feeder tank at Unit 81 Bison Place Moss Side-key for cabinet available from REDACTED,02/12/2020,0000460495,"14,102.40",Revenue,Standard Fuel Oils LtdMain,0
South Ribble Borough Council,http://statistics.data.gov.uk/id/local-authority/30UE,Service Management & Support,,Neighbourhood Admin & Support,Diesel Fuel,3132,Direct Transport Costs,16000 litres diesel @ 88.48ppl into the feeder tank at Unit 81 Bison Place Moss Side- key for cabinet available from REDACTED,04/12/2020,0000460801,"14,529.60",Revenue,Standard Fuel Oils LtdMain,0
South Ribble Borough Council,http://statistics.data.gov.uk/id/local-authority/30UE,Service Management & Support,,Neighbourhood Admin & Support,Gas Oil,3134,Direct Transport Costs,2500 litres gas oil @42.97 ppl into tank 2,18/12/2020,0000461165,"1,116.50",Revenue,Standard Fuel Oils LtdMain,0
South Ribble Borough Council,http://statistics.data.gov.uk/id/local-authority/30UE,Central Support Services,,Area 2 - Waste Transport/Eastern & Central Teams,Materials General,4040,Furniture- Equip & Materials,1 CLAMP SPRING & 2 BOLTS VO65 KRE JFC15741,09/12/2020,0000460834,398.50,Revenue,Taylor Enginering & Fabrications Ltd,0
South Ribble Borough Council,http://statistics.data.gov.uk/id/local-authority/30UE,Central Support Services,,Property Services,Reactive Repair & Maintenance,2020,Premises Repair & Mtne,"To supply & install rain covers  on the staff Entrance door, asset 3650QR at the Civic centre as per your quotation QUO02690",18/12/2020,0000461193,435.00,Revenue,THE AUTOMATIC DOOR COMPANY LTD,0
South Ribble Borough Council,http://statistics.data.gov.uk/id/local-authority/30UE,Central Support Services,,HR & Communications,Occupational Health,1408,Training Expenses,6 X SESSIONS FOR NAME REDACTED,16/12/2020,0000461158,360.00,Revenue,THE THERAPY COMPANY,0
South Ribble Borough Council,http://statistics.data.gov.uk/id/local-authority/30UE,Central Support Services,,Information Services,Reference Books,4142,Printing- Stat & Office Expens,R55,16/12/2020,0000460937,132.50,Revenue,THOMSON REUTERS,0
South Ribble Borough Council,http://statistics.data.gov.uk/id/local-authority/30UE,Central Support Services,,Information Services,Reference Books,4142,Printing- Stat & Office Expens,R55,16/12/2020,0000460937,132.50,Revenue,THOMSON REUTERS,0
South Ribble Borough Council,http://statistics.data.gov.uk/id/local-authority/30UE,Economic Development,,Property Services,Electricity,2303,Energy Costs,1/11/20 to 30/11/20,16/12/2020,0000460965,803.97,Revenue,Total Gas & power Ltd,0
South Ribble Borough Council,http://statistics.data.gov.uk/id/local-authority/30UE,Central Support Services,,Property Services,Climate Change Levy,2307,Energy Costs,CCL,16/12/2020,0000460965,35.90,Revenue,Total Gas & power Ltd,0
South Ribble Borough Council,http://statistics.data.gov.uk/id/local-authority/30UE,Open Spaces,,Property Services,Electricity,2303,Energy Costs,1/11/20 to 30/11/20,16/12/2020,0000460966,513.57,Revenue,Total Gas & power Ltd,0
South Ribble Borough Council,http://statistics.data.gov.uk/id/local-authority/30UE,Open Spaces,,Property Services,Climate Change Levy,2307,Energy Costs,CCL,16/12/2020,0000460966,22.43,Revenue,Total Gas & power Ltd,0
South Ribble Borough Council,http://statistics.data.gov.uk/id/local-authority/30UE,Central Support Services,,Property Services,Electricity,2303,Energy Costs,1/11/20 to 30/11/20,16/12/2020,0000460967,"2,560.18",Revenue,Total Gas & power Ltd,0
South Ribble Borough Council,http://statistics.data.gov.uk/id/local-authority/30UE,Central Support Services,,Property Services,Climate Change Levy,2307,Energy Costs,CCL,16/12/2020,0000460967,143.31,Revenue,Total Gas & power Ltd,0
South Ribble Borough Council,http://statistics.data.gov.uk/id/local-authority/30UE,Central Support Services,,Property Services,Gas,2304,Energy Costs,31/10/20 to 30/11/20,16/12/2020,0000461126,"1,631.55",Revenue,Total Gas & power Ltd,0
South Ribble Borough Council,http://statistics.data.gov.uk/id/local-authority/30UE,Central Support Services,,Property Services,Climate Change Levy,2307,Energy Costs,CCL,16/12/2020,0000461126,193.77,Revenue,Total Gas & power Ltd,0
South Ribble Borough Council,http://statistics.data.gov.uk/id/local-authority/30UE,Economic Development,,Development Enterprise & Comm Mgnt,Economic Regeneration,485A,Miscellaneous Expenses,Newsletter/marketing/editiorial  Editorial for Leyland About Town Autumn 2020 TWA to interview the parties and craft stories on:,18/12/2020,0000460499,400.00,Revenue,TWA Marketing and Communications Ltd,0
South Ribble Borough Council,http://statistics.data.gov.uk/id/local-authority/30UE,Economic Development,,Development Enterprise & Comm Mgnt,Investment & Improvement,485K,Miscellaneous Expenses,"Roller Banners � copywriting, design and print 	Copywriting and project management - 275 Copywriting of roller banners to apply ",18/12/2020,0000460500,470.00,Revenue,TWA Marketing and Communications Ltd,0
South Ribble Borough Council,http://statistics.data.gov.uk/id/local-authority/30UE,Open Spaces,,Area 3 - Parks/Leyland East West,GM Refurbishment,4657,Expenses,To clean the exterior of  the conservatory on Worden Park week commencing 7.12.20,18/12/2020,0000461155,420.00,Revenue,ULTRA CLEAN CONSERVATORIES,0
South Ribble Borough Council,http://statistics.data.gov.uk/id/local-authority/30UE,Democratic Represent and  Mgnt,,Property Services,Rental,4012,Furniture- Equip & Materials,2020 / 2021 annual contract for the monthly rental of hot drinks machines at the civic centre including environmental charge.,09/12/2020,0000460833,291.98,Revenue,VENDING ENTERPRISES,0
South Ribble Borough Council,http://statistics.data.gov.uk/id/local-authority/30UE,Surplus or Deficit on Trading,,Property Services,Agency Staff,1121,Salaries,This order is to cover  invoices relating to  NAME REDACTED until the end of contract. As per NAME REDACTED,16/12/2020,0000460931,"1,808.59",Revenue,Vivid Resourcing,0
South Ribble Borough Council,http://statistics.data.gov.uk/id/local-authority/30UE,Central Support Services,,Information Services,Telecomms- land lines,4269,Communications & Comuting,26th NOV 2020,04/12/2020,0000460798,"3,423.71",Revenue,VODAFONE RE:CABLE & WIRELESS UK,0
South Ribble Borough Council,http://statistics.data.gov.uk/id/local-authority/30UE,Central Support Services,,Information Services,Network and Security,4247,Communications & Comuting,1st Dec 2020,09/12/2020,0000460909,"2,404.20",Revenue,VODAFONE RE:CABLE & WIRELESS UK,0
South Ribble Borough Council,http://statistics.data.gov.uk/id/local-authority/30UE,Surplus or Deficit on Trading,,Property Services,Water Charges(Metered),2511,Water,19/11/19-02/09/20,09/12/2020,0000460615,415.77,Revenue,WATER PLUS,0
South Ribble Borough Council,http://statistics.data.gov.uk/id/local-authority/30UE,Open Spaces,,Property Services,Water Charges(Metered),2511,Water,30/10/19 - 18/02/20,09/12/2020,0000460914,263.00,Revenue,WATER PLUS,0
South Ribble Borough Council,http://statistics.data.gov.uk/id/local-authority/30UE,Open Spaces,,Area 1 - Penwortham Western Parishes,GM Refurbishment,4657,Expenses,Install Aco Style drainage and repair macadam footpath.,16/12/2020,0000461088,"1,560.00",Revenue,WILLIAM PYE LTD,0
South Ribble Borough Council,http://statistics.data.gov.uk/id/local-authority/30UE,Open Spaces,,Area 1 - Penwortham Western Parishes,GM Refurbishment,4657,Expenses,Bollard installation and macadam repair to entrance to park area.,16/12/2020,0000461088,"1,250.00",Revenue,WILLIAM PYE LTD,0
South Ribble Borough Council,http://statistics.data.gov.uk/id/local-authority/30UE,Development Control,,Planning,Professional Fees,4510,Services,Reviewing the Pickerings farm Masterplan documents,11/12/2020,0000460887,"3,500.00",Revenue,WSP UK Ltd,0
South Ribble Borough Council,http://statistics.data.gov.uk/id/local-authority/30UE,Central Support Services,,Legal,Legal,4821,Miscellaneous Expenses,"WORK DONE IN RELATION TO LAND TO THE EAST OF FLENSBURG WAY, FARINGTON MOSS, LEYLAND",22/12/2020,0000461298,568.01,Revenue,X-PRESS LEGAL,0
South Ribble Borough Council,http://statistics.data.gov.uk/id/local-authority/30UE,Central Support Services,,Legal,Legal,4821,Miscellaneous Expenses,SEARCH,22/12/2020,0000461298,22.00,Revenue,X-PRESS LEGAL,0
South Ribble Borough Council,http://statistics.data.gov.uk/id/local-authority/30UE,Central Support Services,,Information Services,Network and Security,4247,Communications & Comuting,"Longton Brickcroft (PR4 5YY) 24 months annually 330.00 and For the Museum - Leyland Museum, Church Road, Leyland",04/12/2020,0000460897,293.81,Revenue,Zen Internet,0
